bitfinex/quotes_SOLUSD_20250704
["timestamp","ask_amount","ask_price","bid_price","bid_amount"]
[1751607077637,14.22869583,153.88,153.83,32.87834469]
[1751607077833,14.22869583,153.84,153.82,0.2]
[1751607079559,6.49971037,153.86,153.82,0.2]
[1751607079735,14.22869583,153.84,153.82,0.2]
[1751607080548,6.49971037,153.86,153.82,0.2]
[1751607080736,14.22869583,153.84,153.82,0.2]
[1751607081054,6.49971037,153.86,153.82,0.2]
[1751607081055,14.22869583,153.83,153.82,0.2]
[1751607082242,14.22869583,153.84,153.82,0.2]
[1751607082534,14.22869583,153.83,153.82,0.2]
[1751607083560,20.7293784,153.83,153.82,0.2]
[1751607084358,6.50031244,153.84,153.82,0.2]
[1751607084549,14.22869583,153.83,153.82,0.2]
[1751607085748,20.7293784,153.83,153.82,0.2]
[1751607088184,6.50068257,153.83,153.82,0.2]
[1751607088364,20.7293784,153.83,153.82,0.2]
[1751607090268,21.01370154,153.83,153.82,0.2]
[1751607090471,21.01370154,153.83,153.82,1e-08]
[1751607091065,21.01370154,153.83,153.78,0.2]
[1751607091066,48.56632782,153.83,153.78,0.2]
[1751607091265,14.51301897,153.79,153.78,0.2]
[1751607091761,9.43549353,153.79,153.78,0.2]
[1751607092469,15.93786689,153.79,153.78,0.2]
[1751607093507,0.28432314,153.78,153.77,0.2]
[1751607093793,1.92062314,153.76,153.71,0.2]
[1751607093970,9.15117039,153.72,153.71,0.2]
[1751607094389,15.65650476,153.72,153.71,0.2]
[1751607095964,1.92062314,153.76,153.71,0.2]
[1751607095965,6.50406504,153.75,153.71,0.2]
[1751607096181,9.15117039,153.72,153.71,0.2]
[1751607096867,1.6363,153.76,153.71,0.2]
[1751607097074,9.15117039,153.73,153.71,6.70561981]
[1751607097377,9.15117039,153.73,153.71,0.2]
[1751607097585,6.50354222,153.77,153.71,6.70572055]
[1751607097792,9.15117039,153.74,153.71,6.70572055]
[1751607098498,9.15117039,153.73,153.71,6.70572055]
[1751607099089,9.15117039,153.73,153.71,0.2]
[1751607099295,9.15117039,153.72,153.71,0.2]
[1751607102372,6.50453954,153.74,153.71,0.2]
[1751607102373,9.15117039,153.74,153.71,0.2]
[1751607102798,9.15117039,153.72,153.71,0.2]
[1751607102974,9.15117039,153.73,153.71,0.2]
[1751607103775,9.15117039,153.73,153.71,6.70565665]
[1751607105588,9.15117039,153.73,153.71,0.2]
[1751607106480,9.15117039,153.78,153.72,9.15117039]
[1751607106702,1.6213,153.8,153.74,9.15117039]
[1751607106903,9.15117039,153.79,153.74,9.15117039]
[1751607107194,9.15117039,153.79,153.75,6.50406504]
[1751607107584,6.50163248,153.81,153.75,6.50406504]
[1751607107792,9.15117039,153.8,153.75,15.65523543]
[1751607107999,9.15117039,153.8,153.76,9.15117039]
[1751607108196,9.15117039,153.79,153.75,15.65523543]
[1751607109910,9.15117039,153.79,153.75,6.50406504]
[1751607110501,9.15117039,153.78,153.75,6.50406504]
[1751607111497,9.15117039,153.78,153.74,25.15413695]
[1751607111697,6.5018426,153.81,153.74,34.30530734]
[1751607111897,9.15117039,153.79,153.74,34.30530734]
[1751607112106,9.15117039,153.79,153.75,0.5]
[1751607112518,147.9489,153.85,153.75,9.65117039]
[1751607112702,9.15117039,153.8,153.75,0.5]
[1751607112902,9.15117039,153.8,153.75,9.65117039]
[1751607114103,9.15117039,153.8,153.76,6.50364203]
[1751607114420,9.15117039,153.79,153.76,6.50364203]
[1751607115001,9.15117039,153.8,153.76,6.50364203]
[1751607116620,6.50026001,153.84,153.76,15.65481242]
[1751607116804,9.15117039,153.81,153.76,15.65481242]
[1751607117713,6.50026001,153.84,153.78,9.15117039]
[1751607118019,147.9489,153.85,153.77,18.64964886]
[1751607118020,6.50082033,153.83,153.77,25.15248512]
[1751607118231,9.15117039,153.81,153.77,34.30365551]
[1751607119610,9.15117039,153.8,153.73,6.5049112]
[1751607119932,9.15117039,153.76,153.73,18.64964886]
[1751607120223,9.15117039,153.77,153.74,0.5]
[1751607120921,9.15117039,153.76,153.74,0.5]
[1751607121547,9.15117039,153.75,153.74,0.5]
[1751607121710,15.65523543,153.75,153.71,0.2]
[1751607122024,9.15117039,153.72,153.71,0.2]
[1751607123438,9.15117039,153.73,153.71,0.2]
[1751607123629,15.65650476,153.72,153.71,0.2]
[1751607124138,25.09199829,153.72,153.71,1e-08]
[1751607124318,25.09199829,153.72,153.68,0.2]
[1751607124319,52.63912499,153.72,153.68,0.2]
[1751607124516,9.15117039,153.69,153.68,0.2]
[1751607124720,38.64326383,153.72,153.68,0.2]
[1751607124945,9.15117039,153.69,153.68,0.2]
[1751607125848,15.65777459,153.69,153.68,0.2]
[1751607126229,33.82370823,153.69,153.64,0.2]
[1751607126446,9.15117039,153.65,153.64,0.2]
[1751607128429,15.65946847,153.65,153.64,0.2]
[1751607129126,9.15117039,153.65,153.64,0.2]
[1751607130415,17.8816105,153.69,153.64,0.2]
[1751607130416,9.15117039,153.66,153.64,0.2]
[1751607130843,18.30234078,153.65,153.64,0.2]
[1751607131342,9.15117039,153.65,153.64,0.2]
[1751607131942,15.65946847,153.65,153.64,0.2]
[1751607133721,9.15117039,153.65,153.64,0.2]
[1751607134117,15.65946847,153.65,153.64,0.2]
[1751607134348,9.15117039,153.65,153.64,0.2]
[1751607134518,15.65946847,153.65,153.64,0.2]
[1751607134940,6.50745103,153.67,153.64,0.2]
[1751607135335,9.15117039,153.65,153.64,0.2]
[1751607136328,15.65946847,153.65,153.64,0.2]
[1751607138949,15.65946847,153.65,153.57,0.1]
[1751607138950,0.28432314,153.64,153.57,0.1]
[1751607139450,9.15117039,153.62,153.58,18.64964886]
[1751607139644,9.15117039,153.61,153.58,18.64964886]
[1751607140544,9.15117039,153.64,153.6,18.64964886]
[1751607140855,9.15117039,153.65,153.6,9.15117039]
[1751607141033,9.15117039,153.64,153.6,9.15117039]
[1751607141233,9.15117039,153.64,153.63,0.1]
[1751607141648,6.5075631,153.67,153.63,0.1]
[1751607141845,9.15117039,153.64,153.63,0.1]
[1751607142755,15.65989207,153.64,153.63,0.1]
[1751607143631,9.15117039,153.64,153.63,0.1]
[1751607144135,15.65989207,153.64,153.63,0.1]
[1751607144457,15.94421521,153.64,153.63,0.1]
[1751607147131,15.94421521,153.64,153.57,0.1]
[1751607147132,0.28432314,153.63,153.57,0.1]
[1751607147328,9.15117039,153.58,153.57,0.1]
[1751607150964,9.15117039,153.59,153.57,0.1]
[1751607151755,9.15117039,153.58,153.57,0.1]
[1751607151955,6.5105702,153.6,153.57,0.1]
[1751607152162,9.15117039,153.58,153.57,0.1]
[1751607152963,15.66243487,153.58,153.57,0.1]
[1751607157363,15.94675801,153.58,153.57,0.1]
[1751607158062,6.79558762,153.58,153.57,1e-08]
[1751607158266,15.94675801,153.58,153.57,1e-08]
[1751607159062,162.67522629,153.61,153.57,1e-08]
[1751607159063,146.4,153.61,153.57,1e-08]
[1751607159263,15.66166099,153.6,153.57,1e-08]
[1751607159441,9.15117039,153.6,153.57,1e-08]
[1751607159842,152.91003554,153.61,153.57,1e-08]
[1751607159843,9.15117039,153.59,153.57,1e-08]
[1751607160042,6.50956815,153.63,153.57,1e-08]
[1751607160348,9.15117039,153.62,153.57,9.1511704]
[1751607161265,9.15117039,153.62,153.58,6.51126448]
[1751607161845,9.15117039,153.63,153.58,15.66243487]
[1751607162170,9.15117039,153.64,153.59,9.15117039]
[1751607162942,9.15117039,153.63,153.58,34.31208373]
[1751607163143,9.15117039,153.62,153.58,34.31208373]
[1751607163375,9.15117039,153.62,153.57,15.66272091]
[1751607164373,15.66088598,153.62,153.57,15.66272091]
[1751607164576,9.15117039,153.62,153.57,15.66272091]
[1751607164866,9.15117039,153.61,153.57,1e-08]
[1751607165053,9.15117039,153.59,153.57,1e-08]
[1751607166767,9.15117039,153.58,153.57,1e-08]
[1751607168285,6.51041666,153.6,153.57,1e-08]
[1751607168457,9.15117039,153.58,153.57,1e-08]
[1751607169375,15.66243487,153.58,153.57,1e-08]
[1751607169883,12.62506113,153.58,153.57,1e-08]
[1751607170182,6.11379665,153.58,153.57,1e-08]
[1751607170753,12.62506113,153.58,153.57,1e-08]
[1751607171358,6.11379665,153.58,153.57,1e-08]
[1751607171984,12.90938427,153.58,153.57,1e-08]
[1751607174072,12.62506113,153.58,153.57,1e-08]
[1751607174279,6.11379665,153.58,153.57,1e-08]
[1751607174489,6.11379665,153.61,153.57,1e-08]
[1751607174688,6.11379665,153.6,153.57,1e-08]
[1751607175895,0.2,153.59,153.57,1e-08]
[1751607176985,0.2,153.59,153.58,24.76344551]
[1751607177977,0.2,153.59,153.58,27.81286213]
[1751607179112,0.2,153.59,153.58,34.32412661]
[1751607181223,0.2,153.65,153.61,9.16321327]
[1751607181379,9.36321327,153.65,153.61,9.16321327]
[1751607181569,9.16321327,153.64,153.6,9.16321327]
[1751607181887,6.70830581,153.65,153.6,9.16321327]
[1751607182087,15.87151908,153.65,153.6,9.16321327]
[1751607183073,9.16321327,153.64,153.6,15.67346699]
[1751607184187,9.16321327,153.62,153.58,15.67433813]
[1751607185295,6.70830581,153.65,153.58,15.67433813]
[1751607185483,9.16321327,153.62,153.58,15.67433813]
[1751607186629,15.67280836,153.62,153.57,34.32445284]
[1751607186782,9.16321327,153.6,153.57,6.51159071]
[1751607187500,9.16321327,153.6,153.57,1e-08]
[1751607187885,9.16321327,153.58,153.57,1e-08]
[1751607188990,6.51004774,153.61,153.57,1e-08]
[1751607189174,9.16321327,153.63,153.58,9.16321327]
[1751607189494,9.16321327,153.63,153.57,18.64964887]
[1751607189495,0.2,153.65,153.6,15.67362993]
[1751607189687,9.36321327,153.65,153.61,9.16321327]
[1751607190076,0.2,153.65,153.62,9.16321327]
[1751607190274,0.2,153.65,153.61,18.64964886]
[1751607190275,0.2,153.65,153.64,9.16321327]
[1751607191086,0.2,153.65,153.63,9.16321327]
[1751607191609,0.2,153.65,153.64,9.16321327]
[1751607192503,0.2,153.65,153.63,27.81286213]
[1751607192696,0.2,153.65,153.63,18.64964886]
[1751607192906,0.2,153.65,153.63,27.81286213]
[1751607193586,0.2,153.65,153.64,6.50872168]
[1751607195004,0.2,153.65,153.62,9.16321327]
[1751607195202,0.2,153.65,153.61,34.32255209]
[1751607195402,0.2,153.65,153.61,15.67290323]
[1751607195788,9.36321327,153.65,153.61,9.16321327]
[1751607196198,9.16321327,153.64,153.59,41.77398845]
[1751607196509,6.70832954,153.65,153.59,41.77398845]
[1751607196510,9.16321327,153.63,153.59,0.1]
[1751607196806,9.16321327,153.63,153.59,9.26321327]
[1751607197003,9.16321327,153.63,153.59,0.1]
[1751607197514,6.70832954,153.65,153.59,0.1]
[1751607197515,9.16321327,153.6,153.59,0.1]
[1751607197721,15.67362993,153.6,153.59,0.1]
[1751607199615,6.51041666,153.6,153.59,0.1]
[1751607199814,9.16321327,153.62,153.59,0.1]
[1751607200019,9.16321327,153.61,153.59,0.1]
[1751607200221,9.16321327,153.6,153.59,0.1]
[1751607200719,9.16321327,153.61,153.59,0.1]
[1751607205224,6.50872168,153.64,153.59,0.1]
[1751607205418,9.16321327,153.61,153.59,0.1]
[1751607205832,6.11127258,153.61,153.59,0.1]
[1751607211532,6.11127258,153.6,153.59,0.1]
[1751607211715,12.5068683,153.6,153.59,0.1]
[1751607212428,18.0406508,153.62,153.59,0.1]
[1751607212429,6.31127258,153.62,153.59,0.1]
[1751607212931,12.82089568,153.62,153.59,0.1]
[1751607213334,6.31127258,153.62,153.59,0.1]
[1751607213636,0.2,153.62,153.59,0.1]
[1751607215222,0.2,153.62,153.59,6.21127258]
[1751607215423,0.2,153.62,153.6,6.11127258]
[1751607216337,0.2,153.62,153.6,12.62155898]
[1751607217436,0.2,153.62,153.59,0.1]
[1751607217935,6.31127258,153.62,153.59,0.1]
[1751607219144,0.2,153.62,153.6,6.11127258]
[1751607219340,0.2,153.62,153.61,24.76092144]
[1751607220415,0.2,153.62,153.61,18.64964886]
[1751607220726,0.2,153.62,153.61,31.27091427]
[1751607221127,0.2,153.62,153.61,25.15964169]
[1751607221430,0.2,153.62,153.61,31.27091427]
[1751607221825,0.2,153.62,153.61,34.31996379]
[1751607231756,0.2,153.62,153.61,34.81996379]
[1751607232251,0.2,153.62,153.61,60.81996379]
[1751607233939,0.2,153.62,153.61,25.65964169]
[1751607234154,0.2,153.62,153.61,34.81996379]
[1751607237438,0.2,153.62,153.61,25.65964169]
[1751607237645,0.2,153.62,153.61,34.81996379]
[1751607237845,0.2,153.62,153.61,25.65964169]
[1751607238036,0.2,153.62,153.61,34.81996379]
[1751607238436,0.2,153.62,153.61,25.65964169]
[1751607238636,0.2,153.62,153.61,34.81996379]
[1751607239555,0.2,153.62,153.61,25.65964169]
[1751607239747,0.2,153.62,153.61,34.81996379]
[1751607243759,0.2,153.62,153.61,31.76685481]
[1751607246247,0.2,153.62,153.61,31.26685481]
[1751607250458,0.2,153.62,153.61,31.76685481]
[1751607251851,0.2,153.62,153.61,25.65964169]
[1751607252053,0.2,153.62,153.61,31.76685481]
[1751607255566,0.2,153.62,153.61,0.5]
[1751607255567,6.30721312,153.62,153.61,0.5]
[1751607255869,0.2,153.62,153.61,0.5]
[1751607256253,12.81678218,153.62,153.61,0.5]
[1751607256457,14.41518218,153.62,153.59,0.1]
[1751607256648,6.10721312,153.6,153.59,0.1]
[1751607258273,12.61762978,153.6,153.59,0.1]
[1751607258564,6.51041666,153.6,153.59,0.1]
[1751607258770,12.61762978,153.6,153.59,0.1]
[1751607261949,18.7248429,153.6,153.59,0.1]
[1751607262148,19.00916604,153.6,153.59,0.1]
[1751607264069,0.28432314,153.59,153.57,1e-08]
[1751607264274,0.28432314,153.59,153.56,0.1]
[1751607264275,1.88362314,153.57,153.56,0.1]
[1751607264453,7.99083626,153.57,153.56,0.1]
[1751607265062,14.48373626,153.57,153.56,0.1]
[1751607265277,20.99542474,153.57,153.56,0.1]
[1751607267183,0.28432314,153.56,153.52,0.2]
[1751607267359,6.10721312,153.53,153.52,0.2]
[1751607269377,12.62059812,153.53,153.52,0.2]
[1751607270252,6.10721312,153.53,153.52,0.2]
[1751607271156,6.51211252,153.56,153.52,25.36333848]
[1751607271157,6.10721312,153.56,153.52,25.36333848]
[1751607271373,6.10721312,153.55,153.52,18.84964886]
[1751607271572,6.10721312,153.55,153.52,25.3633959]
[1751607271962,6.10721312,153.55,153.52,18.84964886]
[1751607272475,6.10721312,153.54,153.52,0.2]
[1751607274983,6.51247672,153.56,153.52,0.2]
[1751607275176,6.10721312,153.54,153.52,0.2]
[1751607275691,6.51247672,153.56,153.52,0.2]
[1751607275692,6.10721312,153.53,153.52,0.2]
[1751607276485,12.62059812,153.53,153.52,0.2]
[1751607276711,6.10721312,153.53,153.52,0.2]
[1751607277489,6.51211252,153.56,153.52,0.2]
[1751607277788,0.2,153.6,153.55,6.10721312]
[1751607278083,0.2,153.6,153.53,18.64964886]
[1751607278084,0.2,153.6,153.58,6.10721312]
[1751607278668,0.2,153.6,153.57,6.10721312]
[1751607278870,6.30721312,153.6,153.56,24.75686198]
[1751607279171,6.10721312,153.59,153.55,6.10721312]
[1751607280887,12.61808365,153.59,153.54,19.79989535]
[1751607281070,6.10721312,153.58,153.54,19.79989535]
[1751607281264,6.10721312,153.58,153.54,13.69268223]
[1751607281587,6.10721312,153.57,153.54,7.18]
[1751607281891,6.10721312,153.56,153.54,7.18]
[1751607283790,0.2,153.6,153.55,6.10721312]
[1751607283965,0.2,153.6,153.54,13.28721312]
[1751607283966,6.10721312,153.58,153.54,13.28721312]
[1751607284287,6.71051598,153.6,153.54,7.18]
[1751607284288,6.10721312,153.57,153.54,7.18]
[1751607284487,6.10721312,153.56,153.54,7.18]
[1751607284693,6.10721312,153.55,153.54,7.18]
[1751607287071,6.10721312,153.55,153.52,0.2]
[1751607290171,6.10721312,153.56,153.52,6.71380785]
[1751607290888,12.61936822,153.56,153.52,0.2]
[1751607291092,6.10721312,153.55,153.52,0.2]
[1751607291584,6.10721312,153.54,153.52,0.2]
[1751607291884,6.10721312,153.54,153.53,26.0]
[1751607292301,6.10721312,153.54,153.52,0.2]
[1751607292590,6.10721312,153.53,153.52,0.2]
[1751607293094,12.62059812,153.53,153.52,0.2]
[1751607293968,12.90492126,153.53,153.52,0.2]
[1751607300600,20.54543438,153.53,153.52,0.2]
[1751607301177,14.43822126,153.53,153.52,0.2]
[1751607301994,20.54543438,153.53,153.52,0.2]
[1751607303386,26.0,153.51,153.49,0.1]
[1751607303586,0.28432314,153.49,153.45,0.1]
[1751607303802,6.10721312,153.46,153.45,0.1]
[1751607304174,6.39153626,153.46,153.45,0.1]
[1751607304482,12.62356917,153.46,153.45,0.1]
[1751607306279,6.10721312,153.46,153.45,0.1]
[1751607306478,12.62356917,153.46,153.45,0.1]
[1751607311503,12.90789231,153.46,153.45,0.1]
[1751607311707,14.47159231,153.46,153.45,0.1]
[1751607312206,62.86969556,153.46,153.37,18.64964886]
[1751607312390,6.10721312,153.39,153.36,18.64964886]
[1751607313681,6.10721312,153.38,153.35,26.0]
[1751607313884,6.10721312,153.36,153.33,7.18]
[1751607314086,6.10721312,153.35,153.33,7.18]
[1751607314285,6.10721312,153.34,153.28,6.10721312]
[1751607314489,1.5888,153.39,153.28,28.94124234]
[1751607314692,6.10721312,153.33,153.3,18.64964886]
[1751607315597,6.10721312,153.33,153.31,6.52273172]
[1751607316600,6.10721312,153.33,153.29,6.52358275]
[1751607316799,6.39153626,153.36,153.29,6.52358275]
[1751607317000,6.10721312,153.33,153.29,6.52358275]
[1751607317302,0.28432314,153.36,153.29,12.63079587]
[1751607317609,6.10721312,153.33,153.29,12.63079587]
[1751607319790,6.10721312,153.36,153.32,12.6295194]
[1751607322814,6.10721312,153.38,153.34,6.10721312]
[1751607323017,6.10721312,153.41,153.36,6.52018325]
[1751607323328,6.10721312,153.4,153.35,12.62808818]
[1751607323713,6.10721312,153.39,153.35,12.62808818]
[1751607323922,6.10721312,153.39,153.34,12.62853135]
[1751607324120,6.10721312,153.36,153.32,6.10721312]
[1751607324319,6.10721312,153.37,153.32,6.10721312]
[1751607324823,6.10721312,153.36,153.31,24.75686198]
[1751607326320,6.10721312,153.35,153.31,31.27942102]
[1751607330230,6.10721312,153.36,153.31,25.1722079]
[1751607330522,6.10721312,153.35,153.31,25.17231962]
[1751607332139,6.10721312,153.35,153.31,31.27953274]
[1751607334121,0.28432314,153.38,153.31,25.17231962]
[1751607334310,6.10721312,153.37,153.32,6.10721312]
[1751607335227,6.51847989,153.41,153.34,12.6286687]
[1751607335425,6.39153626,153.4,153.35,6.10721312]
[1751607336612,6.39153626,153.4,153.36,12.62780636]
[1751607337332,6.39153626,153.4,153.36,6.52059324]
[1751607337627,12.91047235,153.4,153.36,12.62780636]
[1751607339222,6.39153626,153.4,153.36,12.62780636]
[1751607340531,12.91046262,153.4,153.35,12.62814579]
[1751607343035,6.39153626,153.4,153.35,12.62814579]
[1751607343415,6.39153626,153.4,153.35,6.10721312]
[1751607343416,6.10721312,153.39,153.35,6.10721312]
[1751607343616,6.10721312,153.38,153.34,12.62850117]
[1751607343931,6.10721312,153.35,153.31,0.1]
[1751607344132,6.10721312,153.34,153.31,0.1]
[1751607345750,6.10721312,153.33,153.31,0.1]
[1751607346518,6.10721312,153.34,153.31,0.1]
[1751607346719,6.52060511,153.36,153.31,0.1]
[1751607346720,6.10721312,153.33,153.31,0.1]
[1751607347637,6.10721312,153.32,153.31,0.1]
[1751607347915,6.10721312,153.33,153.31,0.1]
[1751607348743,12.62909512,153.33,153.31,0.1]
[1751607348941,6.10721312,153.32,153.31,0.1]
[1751607350643,12.6295194,153.32,153.31,0.1]
[1751607351440,6.52230628,153.32,153.31,0.1]
[1751607351639,12.6295194,153.32,153.31,0.1]
[1751607356737,12.91384254,153.32,153.31,0.1]
[1751607370984,6.52145558,153.34,153.31,0.1]
[1751607371146,6.51932981,153.39,153.33,6.10721312]
[1751607371345,6.10721312,153.34,153.31,0.1]
[1751607371572,6.10721312,153.32,153.31,0.1]
[1751607372568,6.39153626,153.32,153.31,0.1]
[1751607372968,12.91384254,153.32,153.31,0.1]
[1751607373549,6.52168257,153.34,153.31,0.1]
[1751607373779,6.10721312,153.36,153.32,6.10721312]
[1751607373954,6.3384,153.4,153.31,0.1]
[1751607373955,6.10721312,153.37,153.33,6.10721312]
[1751607374477,6.10721312,153.37,153.32,6.10721312]
[1751607374673,6.51932981,153.39,153.33,6.10721312]
[1751607374974,0.28432314,153.37,153.33,6.10721312]
[1751607375269,12.62704679,153.38,153.33,6.10721312]
[1751607375463,0.14216157,153.37,153.33,6.10721312]
[1751607375659,0.28432314,153.37,153.33,6.10721312]
[1751607375860,6.39153626,153.37,153.33,6.10721312]
[1751607376465,6.10721312,153.36,153.31,14.07711312]
[1751607376968,6.10721312,153.36,153.31,20.59979266]
[1751607377763,12.62783942,153.36,153.31,20.59979266]
[1751607378273,6.5206263,153.36,153.32,6.10721312]
[1751607378471,12.62783942,153.36,153.32,6.10721312]
[1751607378866,12.62844403,153.35,153.31,14.07711312]
[1751607379069,6.10721312,153.32,153.31,0.1]
[1751607380376,6.39153626,153.32,153.31,0.1]
[1751607381078,12.91384254,153.32,153.31,0.1]
[1751607385981,6.80662942,153.32,153.31,0.1]
[1751607386187,12.91384254,153.32,153.31,0.1]
[1751607395190,6.80662942,153.32,153.31,0.1]
[1751607395389,12.91384254,153.32,153.31,0.1]
[1751607397068,0.28432314,153.31,153.27,0.2]
[1751607397391,12.91554461,153.28,153.27,0.2]
[1751607402180,19.02275773,153.28,153.27,0.2]
[1751607404798,12.91554461,153.28,153.27,1e-08]
[1751607406811,6.52334785,153.3,153.27,1e-08]
[1751607407006,12.63056097,153.3,153.27,1e-08]
[1751607407381,6.10721312,153.29,153.27,1e-08]
[1751607407809,12.63109968,153.29,153.27,1e-08]
[1751607409406,6.10721312,153.28,153.27,1e-08]
[1751607409983,6.39153626,153.28,153.27,1e-08]
[1751607411826,12.91554461,153.28,153.27,1e-08]
[1751607420417,172.4,153.32,153.27,1e-08]
[1751607420619,6.10721312,153.31,153.27,1e-08]
[1751607420918,6.10721312,153.3,153.27,1e-08]
[1751607421417,12.63079442,153.3,153.27,1e-08]
[1751607422206,6.10721312,153.29,153.27,1e-08]
[1751607422727,6.5235813,153.3,153.27,1e-08]
[1751607422932,12.63079442,153.3,153.27,1e-08]
[1751607424024,6.10721312,153.3,153.27,1e-08]
[1751607425326,6.28729143,153.36,153.29,6.10721312]
[1751607425629,0.2,153.3,153.28,18.64964886]
[1751607426142,0.2,153.3,153.29,6.52358275]
[1751607426344,0.2,153.3,153.28,18.64964886]
[1751607426543,0.2,153.3,153.28,25.17363135]
[1751607426859,0.2,153.3,153.29,6.10721312]
[1751607427704,0.2,153.3,153.29,24.75686198]
[1751607427929,0.2,153.3,153.29,31.28044473]
[1751607443941,0.2,153.36,153.33,26.0]
[1751607444246,0.2,153.36,153.35,6.10721312]
[1751607445117,0.2,153.36,153.35,12.62824344]
[1751607445312,0.2,153.36,153.35,31.2778923]
[1751607446543,0.2,153.36,153.35,24.75686198]
[1751607446751,0.2,153.36,153.35,31.2778923]
[1751607451137,1e-08,153.36,153.35,86.66107962]
[1751607451324,0.2,153.43,153.42,18.64964886]
[1751607451533,6.10721312,153.51,153.44,26.0]
[1751607451852,12.62203374,153.5,153.44,50.75686198]
[1751607452227,12.62203374,153.5,153.44,57.2740674]
[1751607453548,6.10721312,153.49,153.44,32.10721312]
[1751607453759,6.5159839,153.47,153.44,32.10721312]
[1751607454047,12.82416046,153.45,153.41,6.10721312]
[1751607454828,6.71694734,153.45,153.41,6.10721312]
[1751607455151,12.82416046,153.45,153.41,6.10721312]
[1751607456259,14.46486046,153.45,153.4,24.75686198]
[1751607456954,8.35764734,153.45,153.41,6.10721312]
[1751607457861,14.46486046,153.45,153.41,6.10721312]
[1751607458152,6.10721312,153.44,153.4,6.10721312]
[1751607458321,6.10721312,153.44,153.39,32.10721312]
[1751607458528,8.35764734,153.45,153.39,32.10721312]
[1751607458529,6.10721312,153.43,153.39,6.10721312]
[1751607458726,6.39153626,153.44,153.39,6.10721312]
[1751607458926,6.51763018,153.43,153.39,6.10721312]
[1751607460939,6.51763018,153.43,153.41,0.1]
[1751607462342,12.6248433,153.43,153.41,0.1]
[1751607463754,6.10721312,153.42,153.41,0.1]
[1751607464436,12.62526813,153.42,153.41,0.1]
[1751607464627,6.51805501,153.42,153.41,0.1]
[1751607467046,12.62526813,153.42,153.41,0.1]
[1751607467247,12.90959127,153.42,153.41,0.1]
[1751607469261,12.90959127,153.42,153.41,0.1]
[1751607470659,0.2,153.45,153.44,44.64964886]
[1751607470840,6.5638,153.52,153.49,18.64964886]
[1751607470841,0.2,153.52,153.49,18.64964886]
[1751607471035,0.2,153.52,153.51,24.75686198]
[1751607472863,0.2,153.52,153.51,31.27109558]
[1751607476565,0.2,153.52,153.51,64.37109558]
[1751607478539,0.2,153.52,153.51,70.4783087]
[1751607479169,0.2,153.56,153.55,18.64964886]
[1751607479473,0.2,153.56,153.55,24.75686198]
[1751607480468,0.2,153.56,153.55,31.26939861]
[1751607481165,0.2,153.56,153.55,26.0]
[1751607481348,0.2,153.56,153.55,32.10721312]
[1751607482959,0.2,153.56,153.55,38.61974975]
[1751607483268,0.2,153.56,153.55,32.10721312]
[1751607483468,0.2,153.56,153.55,26.0]
[1751607483668,0.2,153.56,153.55,32.10721312]
[1751607484860,12.81940885,153.56,153.49,13.59508241]
[1751607485057,12.81940885,153.56,153.51,6.10721312]
[1751607485058,6.10721312,153.55,153.51,6.10721312]
[1751607485450,0.2,153.56,153.5,18.64964886]
[1751607485654,0.2,153.56,153.53,18.64964886]
[1751607485859,0.2,153.56,153.55,6.10721312]
[1751607486265,0.2,153.56,153.55,32.10721312]
[1751607486768,0.2,153.56,153.55,57.26939861]
[1751607487654,0.2,153.56,153.55,26.0]
[1751607488269,0.2,153.56,153.55,32.51253663]
[1751607488567,0.2,153.56,153.55,26.0]
[1751607488762,0.2,153.56,153.55,32.51253663]
[1751607488975,0.2,153.56,153.55,38.61974975]
[1751607489979,0.2,153.56,153.55,32.51253663]
[1751607490176,0.2,153.56,153.55,32.10721312]
[1751607490571,0.2,153.56,153.55,38.61974975]
[1751607491274,0.2,153.56,153.55,57.26939861]
[1751607492183,0.2,153.56,153.55,51.16218549]
[1751607492479,0.2,153.56,153.55,57.26939861]
[1751607493463,0.2,153.56,153.55,31.26939861]
[1751607495367,0.2,153.59,153.55,47.55074019]